Cogmind - Beta 14 @@@ ROGUE MODE // 2024.09.21 @ 17:13:54 Player: z_ Result: Destroyed by Y-54 Guardian with Flak Gun Performance ------------- Evolutions (0) 0 Regions Visited (3) 600 Robots Destroyed (28) 140 Value Destroyed (637) 637 Prototype IDs (0) 0 Alien Tech Used (0) 0 Bonus (0) 0 TOTAL SCORE: 1377 Bonus ------- None Cogmind --------- Core Integrity 0/250 Matter 300/300 Energy 36/100 System Corruption 0% Temperature Hot (216) Movement Treading (240) Ox1 Location -7/Recycling Parts ------- > --- POWER (1) -------- (None) > --- PROPULSION (2) --- Light Treads Wheel > --- UTILITY (2) ------ Large Storage Unit Seismic Detector > --- WEAPON (2) ------- Beam Cannon Subdweller Beam Cannon > --- INVENTORY (15) --- Ion Engine Subdweller Monowheel High-capacity Storage Unit Huge Storage Unit High-capacity Matter Pod (200) Subdweller Optics ECM Suite Improved Light Armor Plating Scrap Shield Subdweller Machine Gun Light Cannon Grenade Launcher Scrap Shield Fragment (48) Peak State ------------ > --- POWER ------------ Ion Engine > --- PROPULSION ------- Armored Huge Wheel > --- UTILITY ---------- Large Storage Unit Seismic Detector > --- WEAPON ----------- Beam Cannon Subdweller Beam Cannon > --- INVENTORY -------- Ion Engine Wheel Subdweller Monowheel High-capacity Storage Unit Huge Storage Unit High-capacity Matter Pod Subdweller Optics ECM Suite Scrap Shield Subdweller Machine Gun Light Cannon Light Cannon Grenade Launcher Scrap Shield Fragment [Rating: 16] Favorites ----------- Power Light Ion Engine Engine Light Ion Engine Propulsion Light Treads Treads Light Treads Wheel Wheel Utility Seismic Detector Device Seismic Detector Storage Large Storage Unit Weapon Beam Cannon Energy Gun Subdweller Laser Energy Cannon Beam Cannon Ballistic Gun Light Assault Rifle Ballistic Cannon Light Cannon Launcher Grenade Launcher Build | -11 -10 -10 -7 ------- Run | Yrd Mat Sub Rec Slots Evolved . | . . . . Power . | . . . . Propulsion . | . . . . Utility . | . . . . Weapon . | . . . . Parts Attached 29 | 7 12 7 3 Power 3 | 1 1 1 . Engine 3 | 1 1 1 . Core . | . . . . Reactor . | . . . . Propulsion 6 | 2 . 1 3 Treads 3 | 2 . . 1 Leg . | . . . . Wheel 3 | . . 1 2 Hover . | . . . . Flight . | . . . . Utility 7 | 2 5 . . Device 2 | 1 1 . . Storage 5 | 1 4 . . Processor . | . . . . Hackware . | . . . . Protection . | . . . . Artifact . | . . . . Weapon 13 | 2 6 5 . Energy Gun 2 | . 1 1 . Energy Cannon 4 | . 2 2 . Ballistic Gun 3 | 2 1 . . Ballistic Cannon 2 | . 1 1 . Launcher 2 | . 1 1 . Special Weapon . | . . . . Impact Weapon . | . . . . Slashing Weapon . | . . . . Piercing Weapon . | . . . . Special Melee Weapon . | . . . . Unidentified Prototypes . | . . . . Parts Lost 4 | . 1 2 1 Power 1 | . . . 1 Propulsion 2 | . . 2 . Utility . | . . . . Weapon 1 | . 1 . . Highest Loss Streak 2 | . 1 2 1 To Critical Strikes . | . . . . Average Slot Usage (%) 97 | . 100 99 82 Engine 13 | . 14 14 4 Treads 25 | . 28 26 7 Wheel 1 | . . . 13 Device 14 | . 14 14 14 Storage 14 | . 14 14 14 Energy Gun 3 | . 2 4 . Energy Cannon 18 | . 11 21 28 Ballistic Gun 4 | . 11 . . Ballistic Cannon 1 | . 2 1 . Peak Build Rating 16 | 7 8 10 16 Average Rating 8 | 5 7 9 10 On Entrance 6 | . 7 8 9 Naked Turns . | . . . . Heaviest Build 37 | 12 30 37 37 Greatest Support 40 | 40 40 40 28 Greatest Overweight (x) 3 | . . 3 3 Average Overweight (x) . | . . . 2 Largest Inventory Capacity 20 | 8 20 15 15 Average Capacity 13 | 7 12 15 15 Most Carried 15 | 6 15 15 15 Average Carried 13 | 4 11 14 14 Final Capacity 15 | 8 15 15 15 Final Carried 15 | 6 15 14 14 Class Distribution -------------------- 100% | Mutant Dominant Class ---------------- Mutant | -10/Materials Mutant | -10/Subcaves Mutant | -7/Recycling Resources | -11 -10 -10 -7 ----------- Run | Yrd Mat Sub Rec Matter Collected 904 | 279 455 144 26 Remotely . | . . . . Salvage Created 904 | 43 313 365 183 Parts 57 | 2 21 24 10 Haulers Intercepted 1 | . 1 . . Recyclers Shooed 3 | . 1 . 2 Parts Field Recycled . | . . . . Retrieved Matter . | . . . . Parts Self-Destructed 18 | . . 18 . Prevented . | . . . . Kills | -11 -10 -10 -7 ------- Run | Yrd Mat Sub Rec Combat Hostiles Destroyed 21 | . 12 7 2 Guns 7 | . 6 1 . Cannons 11 | . 3 6 2 AOE 3 | . 3 . . Classes Destroyed 9 | 1 5 2 1 Tunneler 2 | 2 . . . Hauler 1 | . 1 . . Recycler 1 | . . . 1 Turret 2 | . . 2 . Watcher 1 | . 1 . . Swarmer 11 | . 8 3 . Grunt 5 | . 3 2 . Sentry 3 | . . 1 2 Subdweller 2 | . 1 1 . Best Kill Streak 4 | 1 4 4 3 Combat Bots Only 4 | . 4 2 2 Max Kills in Single Turn 2 | 1 2 1 1 Gunslinging . | . . . . Exploded 2 | . 2 . . Melee . | . . . . Uniques/NPCs Destroyed . | . . . . Combat | -11 -10 -10 -7 -------- Run | Yrd Mat Sub Rec Hostile Shots Fired 216 | . 83 79 54 Missed 83 | . 28 36 19 Damage Taken 1254 | . 609 377 268 Core 250 | . 78 121 51 Absorbed by Shields . | . . . . Core Remaining (%) 100 | 100 . . . Volleys Fired 119 | 9 52 47 11 Largest 2 | 2 2 2 2 Hottest 140 | 40 95 140 140 Shots Fired 225 | 18 102 83 22 Gun 100 | 18 72 10 . Cannon 116 | . 28 66 22 Launcher 9 | . 2 7 . Special . | . . . . Kinetic 79 | 18 60 1 . Thermal 137 | . 40 75 22 Explosive 9 | . 2 7 . Electromagnetic . | . . . . Robot Hit Streak 24 | 7 10 12 24 Robot Miss Streak 5 | 3 5 2 3 Penetration Max . | . . . . Secondary Targets 2 | . 2 . . Max Gunslinging Chain 1 | . 1 . . Shots Hit Robots 131 | 11 58 44 18 Core Hits 57 | 3 24 22 8 Critical Kills . | . . . . Critical Parts Destroyed 1 | . . 1 . Critical Strikes 1 | . . 1 . Destroy 1 | . . 1 . Melee Attacks . | . . . . Impact . | . . . . Slashing . | . . . . Piercing . | . . . . Sneak Attacks . | . . . . Combat Hostiles . | . . . . Follow-up Attacks . | . . . . Damage Inflicted 2247 | 105 858 879 405 Guns 722 | 105 446 171 . Cannons 1236 | . 282 555 399 Explosions 281 | . 128 153 . Melee . | . . . . Ramming 8 | . 2 . 6 Kinetic 469 | 105 364 . . Thermal 1489 | . 364 726 399 Explosive 281 | . 128 153 . Electromagnetic . | . . . . Impact . | . . . . Slashing . | . . . . Piercing . | . . . . Highest Corruption . | . . . . Average Corruption . | . . . . Corruption Purged . | . . . . Corruption Blocked . | . . . . Overload Shots . | . . . . Overflow Damage 25 | . 25 . . Projectiles 10 | . 10 . . Explosions 15 | . 15 . . Melee . | . . . . Knockbacks . | . . . . Impact . | . . . . Kinetic . | . . . . Secondary . | . . . . Self-Inflicted Damage 3 | . . . 3 Shots . | . . . . Rammed 2 | . 1 . 1 Targets Rammed 2 | . 1 . 1 Kicked . | . . . . Crushed . | . . . . Highest Temperature 456 | . 147 54 456 Average Temperature 73 | . 48 18 213 Received Heat Transfer 468 | . 228 162 78 Effects 1 | . . . 1 Energy Bleed 1 | . . . 1 Siege Activations . | . . . . Robots Corrupted . | . . . . Combat Hostiles . | . . . . Parts Fried . | . . . . Impact Corruptions . | . . . . Robots Melted . | . . . . Combat Hostiles . | . . . . Parts Melted 1 | . . . 1 Heat Transferred 2732 | . 793 1273 666 Parts Sabotaged . | . . . . Parts Stolen . | . . . . Parts Stripped . | . . . . Power Chain Reactions . | . . . . Alert | -11 -10 -10 -7 ------- Run | Yrd Mat Sub Rec Peak Influence 163 | 10 163 . 81 Initial 43 | . 6 . 43 Average 52 | 3 55 . 66 Maximum Alert Level . | . . . . Low Security (%) 100 | 100 100 . 100 Level 1 . | . . . . Level 2 . | . . . . Level 3 . | . . . . Level 4 . | . . . . Level 5 . | . . . . High Security . | . . . . Max Security . | . . . . Squads Dispatched 2 | . 2 . . Investigation 1 | . 1 . . Extermination . | . . . . Reinforcement 1 | . 1 . . Assault . | . . . . Garrison . | . . . . Intercept . | . . . . Searches Triggered . | . . . . Construction Impeded . | . . . . Haulers Reinforced . | . . . . Active Scanning Responses . | . . . . Cargo Convoy Interrupts . | . . . . Stealth | -11 -10 -10 -7 --------- Run | Yrd Mat Sub Rec Distress Signals 1 | . 1 . . Communications Jammed . | . . . . Distress Signals . | . . . . Times Spotted 34 | . 19 12 3 Peak Tracking Total 7 | . 7 4 2 Tactical Retreats 4 | . . 4 . Traps | -11 -10 -10 -7 ------- Run | Yrd Mat Sub Rec Traps Triggered 3 | . 1 2 . Indirectly . | . . . . Trap Hack Attempts . | . . . . Triggered . | . . . . Disarmed . | . . . . Reprogrammed . | . . . . Reused . | . . . . Traps Extracted . | . . . . Installed . | . . . . Triggered . | . . . . Machines | -11 -10 -10 -7 ---------- Run | Yrd Mat Sub Rec Machines Disabled 3 | . . 3 . Max in Single Turn 2 | . . 2 . Machines Repaired . | . . . . Machines Dismantled . | . . . . Machines Sabotaged . | . . . . Overloaded Fab Kills . | . . . . Hacking | -11 -10 -10 -7 --------- Run | Yrd Mat Sub Rec Machines Accessed 5 | . 4 1 . Terminals 3 | . 3 . . Fabricators . | . . . . Repair Stations 1 | . 1 . . Recycling Units . | . . . . Scanalyzers . | . . . . Garrison Access . | . . . . Total Hacks 11 | . 7 4 . Successful 6 | . 2 4 . Failed 5 | . 5 . . Catastrophic 1 | . 1 . . Database Lockouts . | . . . . Manual 6 | . 6 . . Terminals 5 | . 5 . . Fabricators . | . . . . Repair Stations 2 | . 2 . . Recycling Units . | . . . . Scanalyzers . | . . . . Garrison Access . | . . . . Terminal Hacks 5 | . 1 4 . Record 4 | . . 4 . Robot Analysis 1 | . 1 . . Fabricator Hacks . | . . . . Repair Station Hacks . | . . . . Recycling Unit Hacks . | . . . . Scanalyzer . | . . . . Garrison Access Hacks . | . . . . Unauthorized Hacks 1 | . 1 . . Terminals 1 | . 1 . . Botnet 1 | . 1 . . Fabricators . | . . . . Repair Stations . | . . . . Recycling Units . | . . . . Scanalyzers . | . . . . Garrison Access . | . . . . Data Cores Recovered . | . . . . Used . | . . . . Hacking Detections 3 | . 3 . . Full Trace Events . | . . . . Feedback Events . | . . . . Feedback Blocked . | . . . . Robot Schematics Acquired . | . . . . Robots Built . | . . . . Authchips . | . . . . Time . | . . . . Total Robot Build Rating . | . . . . Part Schematics Acquired . | . . . . Parts Built . | . . . . Authchips . | . . . . Time . | . . . . Total Part Build Rating . | . . . . Parts Repaired . | . . . . Time . | . . . . Parts Recycled . | . . . . Recycled Matter . | . . . . Retrieved Matter . | . . . . Retrieved Components . | . . . . Parts Scanalyzed . | . . . . Part Schematics Acquired . | . . . . Parts Damaged . | . . . . Bothacking | -11 -10 -10 -7 ------------ Run | Yrd Mat Sub Rec Used RIF Installer . | . . . . Robots Hacked . | . . . . Non-combat . | . . . . Combat . | . . . . Robot Hacks Applied . | . . . . Relay Couplers Released . | . . . . Fabnet Peak Effective % . | . . . . Robots Rewired . | . . . . Allies Hacked . | . . . . Hacks Repelled . | . . . . Allies | -11 -10 -10 -7 -------- Run | Yrd Mat Sub Rec Total Allies . | . . . . Largest Group . | . . . . Highest-Rated Group . | . . . . Highest-Rated Ally . | . . . . Total Orders . | . . . . Ally Attacks . | . . . . Total Damage . | . . . . Kills . | . . . . Allies Corrupted . | . . . . Allies Melted . | . . . . Intel | -11 -10 -10 -7 ------- Run | Yrd Mat Sub Rec Robot Analysis Total 1 | . 1 . . Derelict Logs Recovered 1 | . . 1 . Drone Launches . | . . . . Drone Recoveries . | . . . . Exploration | -11 -10 -10 -7 ------------- Run | Yrd Mat Sub Rec Turns Passed 3552 | 169 1170 1906 307 Spaces Moved 1941 | 85 541 1116 199 Core 7 | 7 . . . Treads 1666 | 78 541 1040 7 Legs . | . . . . Wheels 268 | . . 76 192 Hover . | . . . . Flight . | . . . . Fastest Speed 50 | 50 160 125 115 Average Speed 154 | 150 160 157 126 Slowest Speed 240 | 160 160 160 240 Overloaded Moves . | . . . . Propulsion Burnouts . | . . . . Robots Hopped . | . . . . Cave-ins Triggered . | . . . . Exploration Rate (%) 52 | 5 90 72 41 Regions Visited 3 Branch Regions 2 Pre-discovered Areas . | . . . . Known Exits Taken . | . . . . Unknown Exits Taken 3 | 1 1 1 . Scrap Searched 1 | . . 1 . Spaces Dug . | . . . . Terrain Destroyed 26 | . 11 12 3 Melee . | . . . . Projectile 3 | . . . 3 AOE 23 | . 11 12 . Terrain Rammed . | . . . . Walls Destroyed . | . . . . Machines Disabled . | . . . . Actions | -11 -10 -10 -7 --------- Run | Yrd Mat Sub Rec Total 2276 | 107 753 1183 233 Wait 141 | . 126 . 15 Move 1938 | 84 540 1115 199 Hop . | . . . . Pick Up 27 | 7 13 6 1 Fast Attach 8 | 6 . . 2 Attach 4 | 1 1 1 1 Detach 1 | . . . 1 Swap 17 | . 11 6 . Drop 19 | . 9 8 2 Fire 119 | 9 52 47 11 Melee . | . . . . Ram 1 | . . . 1 Kick . | . . . . Crush 1 | . 1 . . Escape Stasis . | . . . . Rewire . | . . . . Trap . | . . . . Miscellaneous . | . . . . Route ------- -11/Scrapyard -10/Materials (discovered 5 exits: [*Mat x3] / [*Min] / *Sub) -10/Subcaves (discovered 2 exits: [*Mat] / [*Rec]) -7/Recycling History --------- Turn | Location | Event 10 | -11/Scrapyard | Discovered new exit (range 14) 170 | -11/Scrapyard | Entered Materials 316 | -10/Materials | Build established: Mutant 328 | -10/Materials | Discovered new exit (range 16) 474 | -10/Materials | Discovered new exit (range 15) 938 | -10/Materials | Discovered new exit (range 16) 1069 | -10/Materials | Discovered new exit (range 16) 1070 | -10/Materials | Derelicts attacked the area 1314 | -10/Materials | Discovered new exit (range 6) 1340 | -10/Materials | Entered Subcaves 1487 | -10/Subcaves | Disturbed a concealed Subdweller 2003 | -10/Subcaves | Discovered new exit (range 10) 2031 | -10/Subcaves | Learned location of 1 exit from Materials 2196 | -10/Subcaves | Shifting Twisted Machinery released Sub. Optics 2206 | -10/Subcaves | Shifting Twisted Machinery released Sub. Monowheel 2291 | -10/Subcaves | A swath of the cavern ceiling suddenly collapsed 2665 | -10/Subcaves | Discovered new exit (range 11) 2696 | -10/Subcaves | Core integrity fell below 50% 2913 | -10/Subcaves | Visited Clippyterm 2918 | -10/Subcaves | Learned Factory fabricator intel 2952 | -10/Subcaves | Shifting Twisted Machinery released Sub. Power Source 3001 | -10/Subcaves | Shifting Twisted Machinery released Battle Rifle 3246 | -10/Subcaves | Entered Recycling 3357 | -7/Recycling | Core integrity fell below 20% 3553 | -7/Recycling | Destroyed by Y-54 Guardian with Flak Gun Last Messages --------------- 03361_ Y-54 Guardian destroyed. 03369_ R-06 Scavenger destroyed. 03369_ R-06 Scavenger collects Lgt. Ion Engine. 03377_ Overheating: Energy bleed (-2). 03377_ Dropped Lgt. Cannon. 03378_ Acquired Imp. Light Armor Plating. 03380_ R-06 Scavenger collects Imp. Deuterium Engine. 03382_ Dropped Arm. Huge Wheel. 03383_ Acquired Lgt. Treads. 03384_ R-06 Scavenger collects Lgt. Treads. 03388_ R-06 Scavenger collects Arm. Huge Wheel. 03394_ R-06 Scavenger collects Imp. Heat Sink. 03399_ R-06 Scavenger collects Gatling Laser. 03400_ Acquired 10 matter. 03411_ Slammed into R-06 Scavenger. 03411_ Destabilizing: Core damaged (-5). 03413_ Acquired 6 matter. 03542_ Y-54 Guardian springs to life. Map ----- +----------------------------------------------------+ | ???????????????????????????????????? | | ???????????????????????????????????? | | ???????????????????????????????????? | | ???????????????????###########?????? | | ???????????????????# #?????? | | ???????????????????# #?????? | | ???????????????????# #???### | | ???????????????????# ???# | | ???????????????????# #???# # | | ???????????????????# #???# # | | ??????????????###### #???# # | | ???????########"""## #???# # | | ???????# ##"Y"#########+###### # | | ???????# "" # # | | ???????# T # # | | ???????# # # | | ???????# ####+#########+###### # | | ???????#### ##?????????# ## # | | ????????#"" #??????????# ## # | | ????????#"Y #??????????# + # | | ????????#"" #??????????# ## # | | ???????#### #??????????# ## | | ????# ## ## ####???????# ## | | ????# +???????# ## | | ????# #####Y####???????# ## | | ??????????#@#??????????# ## | | ??????????# #??????????###### #### | | ??????????# #???????????????###??# | | ??????????# #????????????????????# | | ??????????# #????????????????????# # | | ??????????# #????????????????????? ? | | ??????????# #????????????????????? ? | | ??????????# #????????????????????? ? | | ??????????# #????????????????????? ? | | ??????????? ???????????????????????? | | ??????????? ???????????????????????? | | ??????????? ???????????????????????? | | ??????????? ???????????????????????? | | ??????????? ???????????????????????? | | ??????????? ???????????????????????? | | ???????????+???????????????????????? | | ???????????????????????????????????? | | ???????????????????????????????????? | | ???????????????????????????????????? | | ???????????????????????????????????? | | ???????????????????????????????????? | | ???????????????????????????????????? | | ???????????????????????????????????? | | ???????????????????????????????????? | | ???????????????????????????????????? | +----------------------------------------------------+ Best States ------------- Heat Dissipation 25 Energy Generation 10 Energy Capacity 250 Matter Stores 300 Matter Capacity 300 Sight Range 16 Terrain Scan Density 10 Evasion (%) 40 Recoil Reduction 2 Item Schematics ----------------- None Robot Schematics ------------------ None Fabricated ------------ Nothing Alien Tech Used ----------------- None Achievements -------------- None Challenges ------------ None Game ------ Seed PiercingGlidesysAmplifier Manual? 0 Play Time 00:21:48 Cumulative 84.5 hours Start 2024.09.21 @ 16:33:42 End 2024.09.21 @ 17:13:54 Sessions 7 Manual Loads 0 Difficulty Rogue Special Mode None Game No. 56 Rogue 56 Adventurer 0 Explorer 0 Win Type - Total 4 Types 2/0/1/1/0/0/0/0/0 Lore% 38 Gallery% 48 Achievement% 51 Wizard Run 0 Options --------- Layout 1 ASCII 0 Keyboard 0 Movement Arrows Keybinds 0 Fullscreen 1 Font 24/Tamsyn Map View 50x35 Zoom Use 0% Tactical HUD 1 Map Filters NONE Filters NONE Steam 1 RUN: aa4fbc49-1ec2-4ad1-a4f7-a4fda4c4d750